[Event "*** Titled Tuesday Blitz"]
[Site "Chess.com"]
[Date "2021.02.09"]
[Round "8"]
[White "FMOlexandrProhorov"]
[Black "fabianvivasz"]
[Result "0-1"]
[WhiteElo "2142"]
[BlackElo "2342"]
[TimeControl "180+1"]
[EndTime "11:28:36 PST"]
[Termination "fabianvivasz won by resignation"]

1. d4 {[%clk 0:03:00.9]} 1... Nf6 {[%clk 0:02:57.1]} 2. c4 {[%clk 0:03:00.4]}
2... c5 {[%clk 0:02:57]} 3. Nf3 {[%clk 0:02:54.4]} 3... cxd4 {[%clk 0:02:56.7]}
4. Nxd4 {[%clk 0:02:54.7]} 4... e5 {[%clk 0:02:57.3]} 5. Nb5 {[%clk 0:02:54.5]}
5... d5 {[%clk 0:02:57.9]} 6. cxd5 {[%clk 0:02:54.5]} 6... Bc5 {[%clk
0:02:58.3]} 7. N5c3 {[%clk 0:02:53]} 7... O-O {[%clk 0:02:50.3]} 8. a3 {[%clk
0:02:48.2]} 8... a5 {[%clk 0:02:13.5]} 9. e3 {[%clk 0:02:43.3]} 9... Nbd7 {[%clk
0:01:59.1]} 10. Be2 {[%clk 0:02:31.2]} 10... Nb6 {[%clk 0:01:57.2]} 11. e4
{[%clk 0:02:27.3]} 11... Ng4 {[%clk 0:01:38.3]} 12. Bxg4 {[%clk 0:02:24.8]}
12... Qh4 {[%clk 0:01:38.8]} 13. Qf3 {[%clk 0:01:52.7]} 13... Bxg4 {[%clk
0:01:32.9]} 14. Qg3 {[%clk 0:01:53.2]} 14... Qh5 {[%clk 0:01:28.2]} 15. h3
{[%clk 0:01:51.7]} 15... Bd7 {[%clk 0:01:01]} 16. O-O {[%clk 0:01:46.4]} 16...
f5 {[%clk 0:00:59.5]} 17. exf5 {[%clk 0:01:43.1]} 17... Rxf5 {[%clk 0:00:56.6]}
18. Be3 {[%clk 0:01:38]} 18... Bxe3 {[%clk 0:00:44.2]} 19. Qxe3 {[%clk
0:01:37.4]} 19... Nc4 {[%clk 0:00:39.5]} 20. Qe2 {[%clk 0:01:05.2]} 20... Qh4
{[%clk 0:00:20.5]} 21. b3 {[%clk 0:00:58.3]} 21... Rg5 {[%clk 0:00:16.6]} 22.
Kh2 {[%clk 0:00:28.4]} 22... Rxg2+ {[%clk 0:00:14.4]} 23. Kxg2 {[%clk
0:00:28.2]} 23... Bxh3+ {[%clk 0:00:14.6]} 24. Kh2 {[%clk 0:00:19]} 24... Bxf1+
{[%clk 0:00:14.6]} 0-1

[Event "*** Titled Tuesday Blitz"]
[Site "Chess.com"]
[Date "2021.02.09"]
[Round "8"]
[White "UCantHandleDenker"]
[Black "Adham_Fawzy"]
[Result "0-1"]
[WhiteElo "2618"]
[BlackElo "2780"]
[TimeControl "180+1"]
[EndTime "11:28:39 PST"]
[Termination "Adham_Fawzy won by resignation"]

1. Nf3 {[%clk 0:03:00.9]} 1... c5 {[%clk 0:02:58.8]} 2. d3 {[%clk 0:03:01.8]}
2... Nc6 {[%clk 0:02:58.4]} 3. g3 {[%clk 0:03:02.5]} 3... e5 {[%clk 0:02:58.7]}
4. Bg2 {[%clk 0:03:03.1]} 4... g6 {[%clk 0:02:59.2]} 5. O-O {[%clk 0:03:03.2]}
5... Bg7 {[%clk 0:02:59.8]} 6. e4 {[%clk 0:03:04]} 6... d6 {[%clk 0:03:00.3]} 7.
c3 {[%clk 0:03:04.6]} 7... Nge7 {[%clk 0:03:00.6]} 8. a3 {[%clk 0:03:05.2]} 8...
O-O {[%clk 0:02:59.8]} 9. b4 {[%clk 0:03:05.4]} 9... h6 {[%clk 0:03:00.1]} 10.
Nbd2 {[%clk 0:03:05.4]} 10... a6 {[%clk 0:03:00.5]} 11. Nb3 {[%clk 0:03:04.8]}
11... b6 {[%clk 0:02:57]} 12. Rb1 {[%clk 0:03:04.5]} 12... Be6 {[%clk
0:02:56.6]} 13. Be3 {[%clk 0:02:43]} 13... a5 {[%clk 0:02:56.4]} 14. b5 {[%clk
0:02:37.1]} 14... a4 {[%clk 0:02:56.6]} 15. Nbd2 {[%clk 0:02:33.4]} 15... Na5
{[%clk 0:02:53.6]} 16. c4 {[%clk 0:02:32.4]} 16... f5 {[%clk 0:02:51.7]} 17.
exf5 {[%clk 0:02:33.3]} 17... gxf5 {[%clk 0:02:52]} 18. Re1 {[%clk 0:02:22.5]}
18... Qd7 {[%clk 0:02:39.4]} 19. Nf1 {[%clk 0:02:16.6]} 19... Nb3 {[%clk
0:02:37.3]} 20. Nh4 {[%clk 0:02:09.4]} 20... d5 {[%clk 0:02:34.7]} 21. Qc2
{[%clk 0:01:49.5]} 21... Rad8 {[%clk 0:02:25.8]} 22. Rbd1 {[%clk 0:01:47.1]}
22... f4 {[%clk 0:02:02.2]} 23. Bc1 {[%clk 0:01:32.3]} 23... Nd4 {[%clk
0:02:01.3]} 24. Qb1 {[%clk 0:01:15.6]} 24... f3 {[%clk 0:02:01.3]} 25. Ne3
{[%clk 0:00:44.6]} 25... fxg2 {[%clk 0:01:51.2]} 26. Bb2 {[%clk 0:00:44.5]}
26... Bh3 {[%clk 0:01:45.6]} 27. Bxd4 {[%clk 0:00:37.9]} 27... exd4 {[%clk
0:01:40]} 28. Nxd5 {[%clk 0:00:36.2]} 28... Nxd5 {[%clk 0:01:39.9]} 29. cxd5
{[%clk 0:00:36.1]} 29... Qf7 {[%clk 0:01:32.5]} 30. Qc2 {[%clk 0:00:30.9]} 30...
Bf6 {[%clk 0:01:27.5]} 31. Nf3 {[%clk 0:00:26.8]} 31... Qxd5 {[%clk 0:01:26.1]}
32. Re4 {[%clk 0:00:19]} 32... Qf5 {[%clk 0:01:22.6]} 33. Rf4 {[%clk 0:00:18.4]}
33... Qh5 {[%clk 0:01:19.6]} 34. Re1 {[%clk 0:00:16.7]} 34... Bg5 {[%clk
0:01:18.7]} 35. Nxg5 {[%clk 0:00:16.5]} 35... hxg5 {[%clk 0:01:17.9]} 36. Rxf8+
{[%clk 0:00:15.1]} 36... Rxf8 {[%clk 0:01:18.8]} 37. Qc4+ {[%clk 0:00:15.3]}
37... Kh8 {[%clk 0:01:17.1]} 38. Qd5 {[%clk 0:00:15.8]} 38... Qf3 {[%clk
0:01:15.1]} 39. Qe5+ {[%clk 0:00:14.6]} 39... Kh7 {[%clk 0:01:09.8]} 40. Re2
{[%clk 0:00:12.4]} 40... Qxd3 {[%clk 0:01:03.2]} 41. Qe7+ {[%clk 0:00:11.1]}
41... Kg6 {[%clk 0:01:03.5]} 42. Re1 {[%clk 0:00:06.7]} 42... Qf1+ {[%clk
0:01:03.1]} 0-1

[Event "*** Titled Tuesday Blitz"]
[Site "Chess.com"]
[Date "2021.02.09"]
[Round "8"]
[White "noblerone"]
[Black "nochewycandy"]
[Result "0-1"]
[WhiteElo "2410"]
[BlackElo "2645"]
[TimeControl "180+1"]
[EndTime "11:28:40 PST"]
[Termination "nochewycandy won on time"]

1. d4 {[%clk 0:03:00.9]} 1... g6 {[%clk 0:03:00.9]} 2. Nf3 {[%clk 0:03:01]} 2...
Bg7 {[%clk 0:03:01.4]} 3. Bg5 {[%clk 0:03:01.6]} 3... d6 {[%clk 0:03:01]} 4. c3
{[%clk 0:03:01.5]} 4... a6 {[%clk 0:03:00.8]} 5. a4 {[%clk 0:03:00.8]} 5... b6
{[%clk 0:03:00.5]} 6. Nbd2 {[%clk 0:03:00.6]} 6... Bb7 {[%clk 0:03:00.5]} 7. e3
{[%clk 0:03:00.9]} 7... Nd7 {[%clk 0:03:00.7]} 8. Bc4 {[%clk 0:03:01.3]} 8... h6
{[%clk 0:03:00.5]} 9. Bh4 {[%clk 0:03:00.5]} 9... Ngf6 {[%clk 0:03:00.4]} 10.
Qc2 {[%clk 0:02:59.4]} 10... c5 {[%clk 0:02:54.5]} 11. Ba2 {[%clk 0:02:58]}
11... e6 {[%clk 0:02:52.3]} 12. Nc4 {[%clk 0:02:47.5]} 12... Qe7 {[%clk
0:02:46.2]} 13. Bg3 {[%clk 0:02:36.6]} 13... Ne4 {[%clk 0:02:44.8]} 14. Ncd2
{[%clk 0:01:56.5]} 14... Nxg3 {[%clk 0:02:27.5]} 15. hxg3 {[%clk 0:01:57.4]}
15... O-O {[%clk 0:02:21.5]} 16. O-O {[%clk 0:01:53.5]} 16... Rac8 {[%clk
0:02:09.9]} 17. Qd3 {[%clk 0:01:52.4]} 17... d5 {[%clk 0:02:02.6]} 18. Rfe1
{[%clk 0:01:36.4]} 18... Rfd8 {[%clk 0:02:00]} 19. Qe2 {[%clk 0:01:26.7]} 19...
e5 {[%clk 0:01:56.4]} 20. dxe5 {[%clk 0:01:24.4]} 20... Nxe5 {[%clk 0:01:56.2]}
21. Nxe5 {[%clk 0:01:24.1]} 21... Bxe5 {[%clk 0:01:54.8]} 22. Nf3 {[%clk
0:01:22]} 22... Bg7 {[%clk 0:01:54.1]} 23. Rad1 {[%clk 0:01:21.8]} 23... Qe4
{[%clk 0:01:37.2]} 24. Bb3 {[%clk 0:01:16.6]} 24... Ra8 {[%clk 0:01:22.7]} 25.
Bc2 {[%clk 0:01:10.6]} 25... Qe6 {[%clk 0:01:19.6]} 26. Bb3 {[%clk 0:01:09.7]}
26... Qe4 {[%clk 0:01:17.9]} 27. Bc2 {[%clk 0:01:09.6]} 27... Qe8 {[%clk
0:01:18.5]} 28. Bb3 {[%clk 0:01:10.2]} 28... Bc6 {[%clk 0:01:18.7]} 29. Rd2
{[%clk 0:00:46.9]} 29... c4 {[%clk 0:01:09.4]} 30. Bc2 {[%clk 0:00:36.9]} 30...
Bxa4 {[%clk 0:01:08.7]} 31. Bxa4 {[%clk 0:00:37.1]} 31... Qxa4 {[%clk
0:01:09.6]} 32. Red1 {[%clk 0:00:37.5]} 32... Qc6 {[%clk 0:01:07.1]} 33. Nd4
{[%clk 0:00:36.4]} 33... Qb7 {[%clk 0:00:58.6]} 34. Qf3 {[%clk 0:00:32.1]} 34...
Rd6 {[%clk 0:00:53.5]} 35. Nc2 {[%clk 0:00:26.3]} 35... Rad8 {[%clk 0:00:51.1]}
36. Nb4 {[%clk 0:00:06.2]} 36... b5 {[%clk 0:00:50.4]} 37. Nxd5 {[%clk
0:00:02.9]} 37... Kh8 {[%clk 0:00:48.4]} 0-1

[Event "*** Titled Tuesday Blitz"]
[Site "Chess.com"]
[Date "2021.02.09"]
[Round "8"]
[White "awesomevishesh"]
[Black "K_A_S_T_O_R"]
[Result "0-1"]
[WhiteElo "2494"]
[BlackElo "2788"]
[TimeControl "180+1"]
[EndTime "11:28:49 PST"]
[Termination "K_A_S_T_O_R won on time"]

1. d4 {[%clk 0:03:00.9]} 1... Nf6 {[%clk 0:02:59.1]} 2. c3 {[%clk 0:03:00.8]}
2... e6 {[%clk 0:02:59.3]} 3. Nf3 {[%clk 0:02:57.7]} 3... h6 {[%clk 0:02:55.5]}
4. h3 {[%clk 0:02:55.5]} 4... b6 {[%clk 0:02:55.6]} 5. Bf4 {[%clk 0:02:54.9]}
5... Bb7 {[%clk 0:02:56.2]} 6. e3 {[%clk 0:02:54.7]} 6... d6 {[%clk 0:02:56.8]}
7. Bd3 {[%clk 0:02:52.9]} 7... Nbd7 {[%clk 0:02:57.1]} 8. Bh2 {[%clk 0:02:49.3]}
8... Qe7 {[%clk 0:02:54.6]} 9. Nbd2 {[%clk 0:02:28.9]} 9... g6 {[%clk
0:02:53.9]} 10. a4 {[%clk 0:02:26.6]} 10... a5 {[%clk 0:02:45.7]} 11. O-O {[%clk
0:02:18.4]} 11... Bg7 {[%clk 0:02:44.9]} 12. Re1 {[%clk 0:02:15.1]} 12... O-O
{[%clk 0:02:43.8]} 13. Bb5 {[%clk 0:01:14.7]} 13... Rfd8 {[%clk 0:02:33]} 14.
Qc2 {[%clk 0:01:11.9]} 14... e5 {[%clk 0:02:23]} 15. dxe5 {[%clk 0:01:02.4]}
15... Nxe5 {[%clk 0:02:20.7]} 16. Bxe5 {[%clk 0:00:52.5]} 16... dxe5 {[%clk
0:02:20.7]} 17. e4 {[%clk 0:00:52.4]} 17... Nd7 {[%clk 0:02:14.2]} 18. Rad1
{[%clk 0:00:51.7]} 18... Nc5 {[%clk 0:02:13.6]} 19. b3 {[%clk 0:00:24.9]} 19...
Rd6 {[%clk 0:02:04.6]} 20. b4 {[%clk 0:00:11.4]} 20... axb4 {[%clk 0:02:03.6]}
21. cxb4 {[%clk 0:00:12.3]} 21... Ne6 {[%clk 0:02:03.8]} 22. Nc4 {[%clk
0:00:11]} 22... Rxd1 {[%clk 0:02:02.9]} 23. Rxd1 {[%clk 0:00:11.9]} 23... Nd4
{[%clk 0:01:54]} 24. Nxd4 {[%clk 0:00:11.7]} 24... exd4 {[%clk 0:01:54.4]} 25.
Nd2 {[%clk 0:00:05.3]} 25... Rc8 {[%clk 0:01:46.8]} 26. Rb1 {[%clk 0:00:04.3]}
26... c5 {[%clk 0:01:31.2]} 27. bxc5 {[%clk 0:00:04.3]} 27... Rxc5 {[%clk
0:01:31.7]} 28. Qd3 {[%clk 0:00:04.3]} 28... Rc3 {[%clk 0:01:30.7]} 29. Qe2
{[%clk 0:00:03.6]} 29... Qc5 {[%clk 0:01:29.2]} 30. Nf3 {[%clk 0:00:03]} 30...
Rc1+ {[%clk 0:01:26.7]} 31. Rxc1 {[%clk 0:00:03.1]} 31... Qxc1+ {[%clk
0:01:27.2]} 32. Kh2 {[%clk 0:00:01.7]} 32... Qf4+ {[%clk 0:01:27.6]} 33. g3
{[%clk 0:00:01.9]} 33... Qxe4 {[%clk 0:01:27.8]} 34. Qxe4 {[%clk 0:00:02.1]}
34... Bxe4 {[%clk 0:01:28.6]} 35. Nd2 {[%clk 0:00:02.9]} 35... Bd5 {[%clk
0:01:28.6]} 36. Nc4 {[%clk 0:00:03.1]} 36... d3 {[%clk 0:01:21.8]} 37. Nxb6
{[%clk 0:00:02.1]} 37... d2 {[%clk 0:01:21.1]} 38. Be2 {[%clk 0:00:02.6]} 38...
Bb3 {[%clk 0:01:20.8]} 39. a5 {[%clk 0:00:03.1]} 39... Bd4 {[%clk 0:01:16.1]}
40. Nd7 {[%clk 0:00:01.8]} 40... d1=Q {[%clk 0:01:13.5]} 41. Bxd1 {[%clk
0:00:01.6]} 41... Bxd1 {[%clk 0:01:14.4]} 42. a6 {[%clk 0:00:01.8]} 42... Be2
{[%clk 0:01:13.4]} 43. a7 {[%clk 0:00:01.4]} 43... Bxa7 {[%clk 0:01:11.9]} 44.
Kg2 {[%clk 0:00:01.8]} 44... Bd4 {[%clk 0:01:10.1]} 45. Nb8 {[%clk 0:00:01.2]}
45... Bb5 {[%clk 0:01:09.2]} 46. g4 {[%clk 0:00:01.5]} 46... Ba7 {[%clk
0:01:08.8]} 0-1

[Event "*** Titled Tuesday Blitz"]
[Site "Chess.com"]
[Date "2021.02.09"]
[Round "8"]
[White "DenLaz"]
[Black "Kurkusha"]
[Result "1-0"]
[WhiteElo "2768"]
[BlackElo "2354"]
[TimeControl "180+1"]
[EndTime "11:28:52 PST"]
[Termination "DenLaz won by resignation"]

1. d4 {[%clk 0:03:00.9]} 1... d5 {[%clk 0:02:58.9]} 2. c4 {[%clk 0:03:00.8]}
2... e6 {[%clk 0:02:58.4]} 3. Nc3 {[%clk 0:03:00.8]} 3... Nf6 {[%clk 0:02:58.3]}
4. cxd5 {[%clk 0:03:00.3]} 4... exd5 {[%clk 0:02:58.3]} 5. Bg5 {[%clk
0:03:00.2]} 5... Be7 {[%clk 0:02:57.1]} 6. e3 {[%clk 0:03:00.4]} 6... c6 {[%clk
0:02:56.7]} 7. Bd3 {[%clk 0:03:00.6]} 7... O-O {[%clk 0:02:57]} 8. Qc2 {[%clk
0:02:56.9]} 8... h6 {[%clk 0:02:57.1]} 9. Bh4 {[%clk 0:02:51.4]} 9... Re8 {[%clk
0:02:56.9]} 10. Nf3 {[%clk 0:02:49.9]} 10... Ne4 {[%clk 0:02:56.6]} 11. Bxe7
{[%clk 0:02:47.9]} 11... Qxe7 {[%clk 0:02:57.5]} 12. O-O {[%clk 0:02:47.8]}
12... Nd7 {[%clk 0:02:56.9]} 13. Rab1 {[%clk 0:02:47]} 13... Ndf6 {[%clk
0:02:56.3]} 14. b4 {[%clk 0:02:47.1]} 14... Bd7 {[%clk 0:02:56.4]} 15. Ne5
{[%clk 0:02:44.6]} 15... Rac8 {[%clk 0:02:54.9]} 16. Ne2 {[%clk 0:02:35.9]}
16... Nd6 {[%clk 0:02:51.3]} 17. a4 {[%clk 0:02:27.7]} 17... b5 {[%clk 0:02:27]}
18. axb5 {[%clk 0:02:24.5]} 18... cxb5 {[%clk 0:02:27.9]} 19. Qa2 {[%clk
0:02:24.7]} 19... Rc7 {[%clk 0:02:20.4]} 20. Rfc1 {[%clk 0:02:12.3]} 20... Nc4
{[%clk 0:02:18]} 21. Bxc4 {[%clk 0:02:12.4]} 21... dxc4 {[%clk 0:02:13.6]} 22.
Nc3 {[%clk 0:02:10.5]} 22... Rb8 {[%clk 0:02:08.5]} 23. Qa5 {[%clk 0:02:08.5]}
23... Qd6 {[%clk 0:02:04.6]} 24. Ra1 {[%clk 0:02:05.3]} 24... Rcb7 {[%clk
0:01:50.1]} 25. Rcb1 {[%clk 0:02:00.6]} 25... Bf5 {[%clk 0:01:48.8]} 26. Rb2
{[%clk 0:02:00]} 26... Ne4 {[%clk 0:01:47.5]} 27. Ra3 {[%clk 0:01:56.4]} 27...
Nxc3 {[%clk 0:01:41.4]} 28. Rxc3 {[%clk 0:01:57.3]} 28... f6 {[%clk 0:01:35.9]}
29. Nf3 {[%clk 0:01:56.2]} 29... Qd5 {[%clk 0:01:31.5]} 30. Nd2 {[%clk
0:01:53.7]} 30... Bd3 {[%clk 0:01:28]} 31. Qa1 {[%clk 0:01:46.6]} 31... Ra8
{[%clk 0:01:14]} 32. Ra2 {[%clk 0:01:45.9]} 32... Qd6 {[%clk 0:01:11.2]} 33. Qb2
{[%clk 0:01:32.9]} 33... f5 {[%clk 0:00:31.1]} 34. Ra5 {[%clk 0:01:30.3]} 34...
f4 {[%clk 0:00:29.3]} 35. Nf3 {[%clk 0:01:28.4]} 35... fxe3 {[%clk 0:00:22.4]}
36. fxe3 {[%clk 0:01:29.3]} 36... Rf8 {[%clk 0:00:21.1]} 37. Rca3 {[%clk
0:01:23.3]} 37... Be4 {[%clk 0:00:17.4]} 38. Ra6 {[%clk 0:01:12.7]} 38... Qd5
{[%clk 0:00:16.4]} 39. Ne5 {[%clk 0:01:10.9]} 39... c3 {[%clk 0:00:14.1]} 40.
Rxc3 {[%clk 0:01:08.8]} 40... Re7 {[%clk 0:00:10.5]} 41. Rc5 {[%clk 0:01:03.2]}
41... Qa8 {[%clk 0:00:06.3]} 42. h3 {[%clk 0:01:02.6]} 42... Rc8 {[%clk
0:00:04]} 43. Qb3+ {[%clk 0:01:01.2]} 43... Bd5 {[%clk 0:00:03.7]} 44. Rxc8+
{[%clk 0:00:59.2]} 44... Qxc8 {[%clk 0:00:03]} 45. Qxd5+ {[%clk 0:00:59.8]} 1-0

[Event "*** Titled Tuesday Blitz"]
[Site "Chess.com"]
[Date "2021.02.09"]
[Round "8"]
[White "Goryachkina"]
[Black "sergeikim"]
[Result "1-0"]
[WhiteElo "2669"]
[BlackElo "2420"]
[TimeControl "180+1"]
[EndTime "11:28:55 PST"]
[Termination "Goryachkina won by resignation"]

1. e4 {[%clk 0:02:59.8]} 1... e5 {[%clk 0:02:57.8]} 2. Nf3 {[%clk 0:03:00]} 2...
Nc6 {[%clk 0:02:57.1]} 3. Nc3 {[%clk 0:03:00.1]} 3... Nf6 {[%clk 0:02:56]} 4. h3
{[%clk 0:03:00.3]} 4... g6 {[%clk 0:02:55.2]} 5. d4 {[%clk 0:02:58.5]} 5... exd4
{[%clk 0:02:54.6]} 6. Nxd4 {[%clk 0:02:58.5]} 6... d6 {[%clk 0:02:54.5]} 7. Nxc6
{[%clk 0:02:48.7]} 7... bxc6 {[%clk 0:02:53.5]} 8. Bd3 {[%clk 0:02:34.8]} 8...
Bg7 {[%clk 0:02:53]} 9. O-O {[%clk 0:02:34.7]} 9... O-O {[%clk 0:02:51.7]} 10.
Bg5 {[%clk 0:02:29.7]} 10... h6 {[%clk 0:02:50.4]} 11. Bh4 {[%clk 0:02:29.5]}
11... Rb8 {[%clk 0:02:47.2]} 12. Rb1 {[%clk 0:02:29.1]} 12... Qe8 {[%clk
0:02:40.5]} 13. Re1 {[%clk 0:02:23]} 13... Nd7 {[%clk 0:02:35.1]} 14. Qd2 {[%clk
0:02:16.9]} 14... Ne5 {[%clk 0:02:24.4]} 15. Bg3 {[%clk 0:01:56.2]} 15... Kh7
{[%clk 0:02:20.5]} 16. f4 {[%clk 0:01:48.9]} 16... Nxd3 {[%clk 0:02:19.2]} 17.
cxd3 {[%clk 0:01:48.9]} 17... Qd8 {[%clk 0:01:59]} 18. Kh1 {[%clk 0:01:44.6]}
18... Be6 {[%clk 0:01:31.9]} 19. b3 {[%clk 0:01:34.6]} 19... Qf6 {[%clk
0:01:22]} 20. Nd1 {[%clk 0:01:29.7]} 20... Qd4 {[%clk 0:01:17.4]} 21. Ne3 {[%clk
0:01:25.8]} 21... Qb4 {[%clk 0:01:13]} 22. Qe2 {[%clk 0:01:22.3]} 22... a5
{[%clk 0:01:03.9]} 23. f5 {[%clk 0:01:16.9]} 23... Bd7 {[%clk 0:01:03.1]} 24.
Qf3 {[%clk 0:01:15]} 24... Bc3 {[%clk 0:00:45.7]} 25. Rf1 {[%clk 0:01:14.2]}
25... g5 {[%clk 0:00:42.4]} 26. Qh5 {[%clk 0:01:07.5]} 26... Bg7 {[%clk
0:00:26.7]} 27. f6 {[%clk 0:00:50.5]} 27... Bh8 {[%clk 0:00:24.6]} 28. h4 {[%clk
0:00:48.1]} 28... Rb5 {[%clk 0:00:21.3]} 29. e5 {[%clk 0:00:38.8]} 29... gxh4
{[%clk 0:00:15.5]} 30. Bf4 {[%clk 0:00:38.1]} 30... Rxe5 {[%clk 0:00:07.4]} 31.
Qxh6+ {[%clk 0:00:33.7]} 31... Kg8 {[%clk 0:00:07.4]} 32. Bxe5 {[%clk
0:00:31.6]} 32... dxe5 {[%clk 0:00:07.5]} 33. Nf5 {[%clk 0:00:31.5]} 33... Bxf5
{[%clk 0:00:06.7]} 34. Rxf5 {[%clk 0:00:31.3]} 1-0

[Event "*** Titled Tuesday Blitz"]
[Site "Chess.com"]
[Date "2021.02.09"]
[Round "8"]
[White "Darius321"]
[Black "onetowin"]
[Result "1-0"]
[WhiteElo "2277"]
[BlackElo "2020"]
[TimeControl "180+1"]
[EndTime "11:28:55 PST"]
[Termination "Darius321 won by checkmate"]

1. e4 {[%clk 0:02:49.8]} 1... b6 {[%clk 0:03:00.9]} 2. d4 {[%clk 0:02:49.3]}
2... Bb7 {[%clk 0:03:01.8]} 3. Nc3 {[%clk 0:02:49.7]} 3... e6 {[%clk 0:03:02.4]}
4. Bd3 {[%clk 0:02:49.4]} 4... Bb4 {[%clk 0:03:01.6]} 5. f4 {[%clk 0:02:48.5]}
5... f5 {[%clk 0:02:57]} 6. Qe2 {[%clk 0:02:40.7]} 6... Qh4+ {[%clk 0:02:45.4]}
7. g3 {[%clk 0:02:37.2]} 7... Qe7 {[%clk 0:02:45.9]} 8. Nf3 {[%clk 0:02:34.2]}
8... Nf6 {[%clk 0:02:44.7]} 9. e5 {[%clk 0:02:20]} 9... Ne4 {[%clk 0:02:41.6]}
10. Bd2 {[%clk 0:02:14.2]} 10... Nxd2 {[%clk 0:02:40.5]} 11. Kxd2 {[%clk
0:02:14.3]} 11... c5 {[%clk 0:02:35.9]} 12. a3 {[%clk 0:02:11.2]} 12... Ba5
{[%clk 0:02:35.7]} 13. Rhb1 {[%clk 0:01:56.2]} 13... cxd4 {[%clk 0:02:20.5]} 14.
Nxd4 {[%clk 0:01:54.8]} 14... Bxc3+ {[%clk 0:02:19.3]} 15. bxc3 {[%clk
0:01:46.3]} 15... Nc6 {[%clk 0:02:18.5]} 16. Nb5 {[%clk 0:01:44.9]} 16... O-O
{[%clk 0:02:10.5]} 17. Nd6 {[%clk 0:01:44.8]} 17... Na5 {[%clk 0:02:09.9]} 18.
g4 {[%clk 0:01:26.4]} 18... Qh4 {[%clk 0:01:55.2]} 19. Rg1 {[%clk 0:01:06.2]}
19... Qh3 {[%clk 0:01:39.7]} 20. Rg3 {[%clk 0:01:00.6]} 20... Qh6 {[%clk
0:01:32.8]} 21. g5 {[%clk 0:00:39.6]} 21... Qh4 {[%clk 0:01:21.2]} 22. Qf2
{[%clk 0:00:30.9]} 22... Be4 {[%clk 0:01:13.9]} 23. Re1 {[%clk 0:00:29]} 23...
Bxd3 {[%clk 0:01:08.8]} 24. cxd3 {[%clk 0:00:29.2]} 24... Nb3+ {[%clk 0:01:09]}
25. Kc2 {[%clk 0:00:28.5]} 25... Nc5 {[%clk 0:01:07]} 26. Ree3 {[%clk
0:00:27.4]} 26... Qh5 {[%clk 0:00:52.5]} 27. Rh3 {[%clk 0:00:22.8]} 27... Qg6
{[%clk 0:00:51.4]} 28. Reg3 {[%clk 0:00:21.5]} 28... Rfc8 {[%clk 0:00:48.5]} 29.
Rh6 {[%clk 0:00:17.3]} 29... Na4 {[%clk 0:00:34.9]} 30. c4 {[%clk 0:00:13.4]}
30... gxh6 {[%clk 0:00:16]} 31. gxh6 {[%clk 0:00:14.3]} 31... Qxg3 {[%clk
0:00:16]} 32. Qxg3+ {[%clk 0:00:14.3]} 32... Kf8 {[%clk 0:00:14.1]} 33. Qg7#
{[%clk 0:00:14]} 1-0

[Event "*** Titled Tuesday Blitz"]
[Site "Chess.com"]
[Date "2021.02.09"]
[Round "8"]
[White "IljaJoke"]
[Black "malakismayil"]
[Result "1-0"]
[WhiteElo "2521"]
[BlackElo "2377"]
[TimeControl "180+1"]
[EndTime "11:28:57 PST"]
[Termination "IljaJoke won on time"]

1. e4 {[%clk 0:03:00.9]} 1... e5 {[%clk 0:02:58.5]} 2. Nf3 {[%clk 0:03:00.7]}
2... Nc6 {[%clk 0:02:57.1]} 3. Bc4 {[%clk 0:02:59.6]} 3... Bc5 {[%clk
0:02:56.9]} 4. c3 {[%clk 0:02:59.2]} 4... Nf6 {[%clk 0:02:56.4]} 5. d4 {[%clk
0:02:59.5]} 5... exd4 {[%clk 0:02:56.5]} 6. cxd4 {[%clk 0:03:00.4]} 6... Bb4+
{[%clk 0:02:56.2]} 7. Nc3 {[%clk 0:03:01]} 7... Bxc3+ {[%clk 0:02:55.5]} 8. bxc3
{[%clk 0:02:59.3]} 8... d5 {[%clk 0:02:07.7]} 9. exd5 {[%clk 0:02:55.1]} 9...
Ne7 {[%clk 0:02:04.1]} 10. Bg5 {[%clk 0:02:44]} 10... Nexd5 {[%clk 0:01:59.4]}
11. O-O {[%clk 0:02:42.6]} 11... O-O {[%clk 0:01:57.7]} 12. Qc2 {[%clk
0:02:26.9]} 12... h6 {[%clk 0:01:46.9]} 13. Bh4 {[%clk 0:02:21.2]} 13... Be6
{[%clk 0:01:35.8]} 14. Ne5 {[%clk 0:02:11.7]} 14... Qd6 {[%clk 0:01:25]} 15. Bg3
{[%clk 0:02:02.5]} 15... Qd8 {[%clk 0:01:18]} 16. Rad1 {[%clk 0:01:49.4]} 16...
Nd7 {[%clk 0:01:14]} 17. f4 {[%clk 0:01:47.4]} 17... N7b6 {[%clk 0:00:57.8]} 18.
Bxd5 {[%clk 0:01:35.8]} 18... Nxd5 {[%clk 0:00:54.7]} 19. f5 {[%clk 0:01:29.5]}
19... Ne3 {[%clk 0:00:51]} 20. Qd2 {[%clk 0:01:29.6]} 20... Nxf1 {[%clk
0:00:48]} 21. Rxf1 {[%clk 0:01:29.2]} 21... Bd5 {[%clk 0:00:40.4]} 22. f6 {[%clk
0:01:29.4]} 22... Re8 {[%clk 0:00:31]} 23. fxg7 {[%clk 0:01:27.5]} 23... Qg5
{[%clk 0:00:25.2]} 24. Bf4 {[%clk 0:01:22.2]} 24... Qxg7 {[%clk 0:00:25.1]} 25.
Bxh6 {[%clk 0:01:22.2]} 25... Qh7 {[%clk 0:00:23.1]} 26. Qg5+ {[%clk 0:01:12.2]}
26... Kh8 {[%clk 0:00:20.2]} 27. Qf6+ {[%clk 0:01:11.5]} 27... Kg8 {[%clk
0:00:20.4]} 28. Rf4 {[%clk 0:00:26.6]} 28... Qb1+ {[%clk 0:00:18]} 29. Kf2
{[%clk 0:00:24.1]} 29... Qc2+ {[%clk 0:00:17.7]} 30. Kg3 {[%clk 0:00:24.6]}
30... Qxg2+ {[%clk 0:00:17.5]} 31. Kh4 {[%clk 0:00:25.1]} 31... Qxh2+ {[%clk
0:00:17.5]} 32. Kg5 {[%clk 0:00:25.5]} 32... Qg3+ {[%clk 0:00:05.3]} 33. Rg4
{[%clk 0:00:25.6]} 1-0